[Event "WWRR B-Group 2024"]
[Site "Wachtebeke"]
[Date "2024.02.13"]
[Round "6.4"]
[White "Nemegeer, Arne"]
[Black "Schrik, Rachid"]
[Result "*"]
[ECO "D00"]
[WhiteElo "2100"]
[BlackElo "2179"]
[Annotator "RC"]
[PlyCount "60"]
[EventDate "2024.02.12"]
[EventType "tourn"]
[EventCountry "BEL"]
[SourceTitle "playchess.com"]
[Source "ChessBase"]
[SourceQuality "1"]
[TimeControl "40/5400+30:900+30"]

1. d4 {[%emt 0:00:13]} d5 {[%emt 0:00:11]} 2. Nc3 {[%emt 0:00:19]} Nf6 {[%emt 0:00:09]} 3. Bf4 {[%emt 0:00:14]} a6 {[%emt 0:00:14]} 4. e3 {[%emt 0:00:50]} e6 {[%emt 0:00:25]} 5. g4 {[%emt 0:03:23]} Bb4 {[%emt 0:00:22]} 6. Bg2 {[%emt 0:10:29]} c5 {[%emt 0:02:51]} 7. g5 {[%emt 0:05:15]} Nfd7 {[%emt 0:00:33]} 8. Nge2 {[%emt 0:03:07]} Nc6 {[%emt 0:01:10]} 9. a3 {[%emt 0:02:09]} cxd4 {[%emt 0:01:28]} 10. exd4 {[%emt 0:02:59]} Be7 {[%emt 0:02:55]} 11. h4 {[%emt 0:01:57]} Nb6 {[%emt 0:09:40]} 12. b3 {[%emt 0:05:23]} O-O {[%emt 0:06:06]} 13. Qd3 {[%emt 0:02:29]} f6 {[%emt 0:05:57]} 14. Qg3 {[%emt 0:02:49]} Qe8 {[%emt 0:12:40]} 15. gxf6 {[%emt 0:02:42]} Bxf6 {[%emt 0:08:02]} 16. O-O-O {[%emt 0:01:54]} Qf7 {[%emt 0:09:55]} 17. Rhg1 {[%emt 0:10:50]} Bxd4 {[%emt 0:01:12]} 18. Rxd4 {[%emt 0:07:29]} Nxd4 {[%emt 0:00:14]} 19. Be5 {[%emt 0:01:02]} Nxe2+ {[%emt 0:03:53]} 20. Nxe2 {[%emt 0:00:07]} Nd7 {[%emt 0:00:59]} 21. Bb2 {[%emt 0:02:02]} Nf6 {[%emt 0:03:05]} 22. Kb1 {[%emt 0:04:10]} b6 {[%emt 0:01:40]} 23. Qe5 {[%emt 0:06:04]} Ra7 {[%emt 0:08:43]} 24. Bh3 {[%emt 0:06:31]} Ne8 {[%emt 0:05:02]} 25. h5 {[%emt 0:02:52]} h6 {[%emt 0:04:01]} 26. Rg6 {[%emt 0:02:50]} Nf6 {[%emt 0:01:28]} 27. Qe3 {[%emt 0:02:32]} Nxh5 {[%emt 0:06:23]} 28. Qxh6 {[%emt 0:01:18]} e5 {[%emt 0:01:31]} 29. Bxc8 {[%emt 0:02:17]} Rxc8 {[%emt 0:00:31]} 30. Qxh5 {[%emt 0:00:44]} d4 {[%emt 0:02:30]} *

[Event "WWRR B-Group 2024"]
[Site "Wachtebeke"]
[Date "2024.02.13"]
[Round "6.5"]
[White "Ruzhansky, Elias"]
[Black "Raptis, Filippos"]
[Result "1-0"]
[ECO "B30"]
[WhiteElo "2133"]
[BlackElo "2174"]
[Annotator "TA"]
[PlyCount "71"]
[EventDate "2024.02.12"]
[EventType "tourn"]
[EventCountry "BEL"]
[SourceTitle "playchess.com"]
[Source "ChessBase"]
[SourceQuality "1"]
[TimeControl "40/5400+30:900+30"]

{[%evp 13,71,27,18,29,22,10,52,61,67,61,56,55,68,59,97,103,102,102,112,84,85,83,122,97,106,108,164,143,208,207,210,221,192,187,174,183,206,199,214,159,269,229,361,358,377,372,487,342,417,418,539,504,993,983,911,698,754,725,742,741]} 1. e4 {[%emt 0:00:01]} c5 {[%emt 0:00:11]} 2. Nf3 {[%emt 0:00:03]} Nc6 {[%emt 0:00:27]} 3. Bb5 {[%emt 0:00:04]} e6 {[%emt 0:00:35]} 4. O-O {[%emt 0:00:29]} Nge7 {[%emt 0:00:34]} 5. Re1 {[%emt 0:00:33]} Nd4 {[%emt 0:00:52]} 6. Nxd4 {[%emt 0:00:18]} cxd4 {[%emt 0:00:02]} 7. c3 {[%emt 0:00:31]} a6 {[%emt 0:00:40]} 8. Bf1 {[%emt 0:00:06]} Nc6 {[%emt 0:01:07]} 9. b4 {[%emt 0:01:00] Against Bc5} dxc3 {[%emt 0:05:29]} 10. dxc3 {[%emt 0:00:40] White is slightly better.} d6 {[%emt 0:02:06]} 11. a4 {[%emt 0:05:20]} Be7 {[%emt 0:01:31]} 12. Na3 {[%emt 0:00:05][%cal Bb1a3,Ba3c4,Bc4b6][%mdl 32]} O-O {[%emt 0:02:41]} 13. Be3 {[%emt 0:03:21]} Ne5 {[%emt 0:12:18]} 14. f4 {[%emt 0:14:51]} Nd7 {[%emt 0:01:01]} 15. Nc4 {[%emt 0:00:07]} Nf6 {[%emt 0:21:20]} 16. Nb6 {[%emt 0:10:12]} Rb8 {[%emt 0:00:23]} 17. Qf3 {[%emt 0:02:45]} Qc7 {[%emt 0:07:56]} 18. Bf2 {[%emt 0:02:14]} Nd7 {[%emt 0:10:20]} 19. a5 {[%emt 0:03:12] White has more active pieces. The black rooks are passive.} Nf6 {[%emt 0:00:38]} (19... Nxb6 $16 20. Bxb6 (20. axb6 Qd8 $16) 20... Qc6) 20. Rac1 {[%emt 0:02:53]} d5 {[%emt 0:10:50]} (20... Bd7 $16 21. c4 Be8) 21. exd5 $18 {[%emt 0:04:43]} Nxd5 {[%emt 0:02:48]} 22. Nxd5 {[%emt 0:00:17]} exd5 {[%emt 0:00:02]} 23. Qxd5 {[%emt 0:04:15]} Be6 {[%emt 0:04:48]} 24. Qf3 {[%emt 0:01:55] Hoping for Bb6.} Rbe8 {[%emt 0:02:01]} 25. Bd3 {[%emt 0:05:04][%cal Oe1e6] Strongly threatening Rxe6!} Bd6 {[%emt 0:01:39]} 26. Bb6 {[%emt 0:02:26]} Qb8 {[%emt 0:00:18]} (26... Qc8 $16 27. f5 Bd7) 27. g3 $40 {[%emt 0:00:21][%mdl 128] White wants a kill.} Kh8 {[%emt 0:02:36]} (27... Re7 $142 28. Bd4 Qe8) 28. Bd4 {[%emt 0:04:53]} f5 {[%emt 0:00:48]} 29. Re3 {[%emt 0:01:27]} Bd7 {[%emt 0:00:22]} 30. Rce1 {[%emt 0:00:42] [#] Threatens to win with Qh5.} Rxe3 {[%emt 0:02:59]} 31. Rxe3 {[%emt 0:00:05] Qh5 is the strong threat.} ({Less strong is} 31. Bxe3 Bc6 32. Qh5 Be8 $18) 31... Re8 {[%emt 0:00:16]} 32. Rxe8+ {[%emt 0:04:24] White is clearly winning.} Qxe8 {[%emt 0:00:33] Black is weak on the dark squares} (32... Bxe8 $142 33. Qd5 (33. Bxf5 Bc6 $18) 33... Bc6 34. Qxf5 Qg8) 33. Qxb7 {[%emt 0:00:47]} Bf8 {[%emt 0:00:24]} 34. Qf3 {[%emt 0:01:53]} Bc6 {[%emt 0:00:32]} 35. Qe2 {[%emt 0:01:07]} Qd7 {[%emt 0:03:34]} 36. Qe5 {[%emt 0:01:09] White took control after the opening.   Weighted Error Value: White=0.16 (very precise) /Black=0.37.  Mistake:       	---       	Black=5      Inaccurate:     	---       	Black=4      OK:         	White=13    	Black=7      Best:        	White=1     	Black=1} 1-0

[Event "WWRR B-Group 2024"]
[Site "Wachtebeke"]
[Date "2024.02.13"]
[Round "6.5"]
[White "Nemegeer, Arne"]
[Black "Schrik, Rachid"]
[Result "1-0"]
[ECO "B30"]
[WhiteElo "2100"]
[BlackElo "2179"]
[Annotator "TA"]
[PlyCount "71"]
[EventDate "2024.02.12"]
[EventType "tourn"]
[EventCountry "BEL"]
[SourceTitle "playchess.com"]
[Source "ChessBase"]
[SourceQuality "1"]
[TimeControl "40/5400+30:900+30"]

{[%evp 13,71,14,14,27,12,10,41,42,66,57,62,58,44,40,108,104,99,100,126,100,100,93,106,104,107,112,152,142,200,206,188,204,194,155,163,168,170,175,191,147,261,260,340,349,366,364,470,420,466,473,564,520,947,951,878,715,698,666,724,716]} 1. e4 {[%emt 0:00:01]} c5 {[%emt 0:00:11]} 2. Nf3 {[%emt 0:00:03]} Nc6 {[%emt 0:00:27]} 3. Bb5 {[%emt 0:00:04]} e6 {[%emt 0:00:35]} 4. O-O {[%emt 0:00:29]} Nge7 {[%emt 0:00:34]} 5. Re1 {[%emt 0:00:33]} Nd4 {[%emt 0:00:52]} 6. Nxd4 {[%emt 0:00:18]} cxd4 {[%emt 0:00:02]} 7. c3 {[%emt 0:00:31]} a6 {[%emt 0:00:40]} 8. Bf1 {[%emt 0:00:06]} Nc6 {[%emt 0:01:07]} 9. b4 {[%emt 0:01:00] Prevents Bc5} dxc3 {[%emt 0:05:29]} 10. dxc3 {[%emt 0:00:40] White is slightly better.} d6 {[%emt 0:02:06]} 11. a4 {[%emt 0:05:20]} Be7 {[%emt 0:01:31]} 12. Na3 {[%emt 0:00:05][%cal Bb1a3,Ba3c4,Bc4b6][%mdl 32]} O-O {[%emt 0:02:41]} 13. Be3 {[%emt 0:03:21]} Ne5 {[%emt 0:12:18]} (13... d5 $14) 14. f4 {[%emt 0:14:51]} Nd7 {[%emt 0:01:01]} 15. Nc4 {[%emt 0:00:07]} Nf6 {[%emt 0:21:20]} 16. Nb6 {[%emt 0:10:12]} Rb8 {[%emt 0:00:23]} 17. Qf3 {[%emt 0:02:45]} Qc7 {[%emt 0:07:56]} 18. Bf2 {[%emt 0:02:14]} Nd7 {[%emt 0:10:20]} 19. a5 {[%emt 0:03:12] White is much more active. The black rooks are passive.} Nf6 {[%emt 0:00:38]} 20. Rac1 {[%emt 0:02:53]} d5 {[%emt 0:10:50]} (20... Bd7 $16 {is a better defense.} 21. c4 Be8) 21. exd5 $18 {[%emt 0:04:43]} Nxd5 {[%emt 0:02:48]} 22. Nxd5 {[%emt 0:00:17]} exd5 {[%emt 0:00:02]} 23. Qxd5 {[%emt 0:04:15]} Be6 {[%emt 0:04:48]} 24. Qf3 {[%emt 0:01:55] Threatens to win with Bb6.} Rbe8 {[%emt 0:02:01]} 25. Bd3 {[%emt 0:05:04][%cal Oe1e6] Strongly threatening Rxe6!} Bd6 {[%emt 0:01:39]} 26. Bb6 {[%emt 0:02:26]} Qb8 {[%emt 0:00:18]} (26... Qd7 $16 27. h3 Bb3) 27. g3 $40 {[%emt 0:00:21][%mdl 128] White goes for the king.} Kh8 {[%emt 0:02:36]} 28. Bd4 {[%emt 0:04:53]} f5 {[%emt 0:00:48]} 29. Re3 {[%emt 0:01:27]} Bd7 {[%emt 0:00:22]} 30. Rce1 {[%emt 0:00:42] [#] Qh5 would now be deadly.} Rxe3 {[%emt 0:02:59]} 31. Rxe3 {[%emt 0:00:05] White is clearly winning.} ({Weaker is} 31. Bxe3 Bc6 32. Qh5 Be8 $18) 31... Re8 {[%emt 0:00:16]} 32. Rxe8+ {[%emt 0:04:24]} Qxe8 {[%emt 0:00:33] Black is weak on the dark squares} (32... Bxe8 $142 33. Bxf5 Qc7) 33. Qxb7 {[%emt 0:00:47]} Bf8 {[%emt 0:00:24]} 34. Qf3 {[%emt 0:01:53]} Bc6 {[%emt 0:00:32]} 35. Qe2 {[%emt 0:01:07]} Qd7 {[%emt 0:03:34]} 36. Qe5 {[%emt 0:01:09] White took control after the opening.   Weighted Error Value: White=0.07 (flawless) /Black=0.31.  Mistake:       	---       	Black=4      Inaccurate:     	---       	Black=3      OK:         	White=13    	Black=8} 1-0

[Event "WWRR B-Group 2024"]
[Site "Wachtebeke"]
[Date "2024.02.14"]
[Round "7.1"]
[White "Schrik, Rachid"]
[Black "Toulzac, Pierre-Yves"]
[Result "1/2-1/2"]
[ECO "D55"]
[WhiteElo "2179"]
[BlackElo "2046"]
[Annotator "TA"]
[PlyCount "27"]
[EventDate "2024.02.12"]
[EventType "tourn"]
[EventCountry "BEL"]
[SourceTitle "playchess.com"]
[Source "ChessBase"]
[SourceQuality "1"]
[TimeControl "40/5400+30:900+30"]

{[%evp 17,27,11,3,3,24,31,20,21,35,29,46,31]} 1. d4 {[%emt 0:00:32]} d5 {[%emt 0:02:23]} 2. c4 {[%emt 0:00:23]} e6 {[%emt 0:00:21]} 3. Nc3 {[%emt 0:00:24]} Nf6 {[%emt 0:01:47]} 4. Bg5 {[%emt 0:01:39]} Be7 {[%emt 0:02:06]} 5. e3 {[%emt 0:02:15]} h6 {[%emt 0:01:36]} 6. Bxf6 {[%emt 0:00:44]} Bxf6 {[%emt 0:00:24]} 7. Rc1 {[%emt 0:00:33]} O-O {[%emt 0:02:55]} 8. Nf3 {[%emt 0:03:53]} Nc6 {[%emt 0:02:55]} 9. cxd5 {[%emt 0:07:39]} exd5 {[%emt 0:00:05]} 10. h3 {[%emt 0:10:53]} Re8 {[%emt 0:15:11]} 11. Bb5 {[%emt 0:03:09]} Re6 {[%emt 0:00:15]} 12. O-O {[%emt 0:02:08]} Ne7 {[%emt 0:03:26]} 13. Bd3 {[%emt 0:01:53]} c6 {[%emt 0:01:51]} 14. Re1 {[%emt 0:02:32] White took control after the opening.   Weighted Error Value: White=0.00 (flawless) /Black=0.12 (very precise) .  OK:         	White=3     	Black=1} 1/2-1/2

[Event "WWRR B-Group 2024"]
[Site "Wachtebeke"]
[Date "2024.02.14"]
[Round "7.2"]
[White "Vandenhole, Kobe"]
[Black "Nemegeer, Arne"]
[Result "1/2-1/2"]
[ECO "B50"]
[WhiteElo "2081"]
[BlackElo "2100"]
[Annotator "NA RC"]
[PlyCount "122"]
[EventDate "2024.02.12"]
[EventType "tourn"]
[EventCountry "BEL"]
[SourceTitle "playchess.com"]
[Source "ChessBase"]
[SourceQuality "1"]
[TimeControl "40/5400+30:900+30"]

1. e4 {[%emt 0:05:08]} c5 {[%emt 0:00:01]} 2. Nf3 {[%emt 0:00:07]} d6 {[%emt 0:00:03]} 3. c3 {[%emt 0:00:20]} Nf6 {[%emt 0:00:04]} 4. Be2 {[%emt 0:00:03]} g6 {[%emt 0:00:05]} 5. O-O {[%emt 0:00:08]} Bg7 {[%emt 0:00:01]} 6. Bb5+ {[%emt 0:00:06]} Nc6 {[%emt 0:00:03]} 7. d4 {[%emt 0:00:22] B50: Sicilian: 2...d6, Miscellaneous.} Qb6 {[%emt 0:01:53]} 8. Ba4 {[%emt 0:01:21]} O-O {[%emt 0:00:42]} 9. d5 {[%emt 0:00:52]} Nb8 {[%emt 0:02:37]} 10. Re1 {[%emt 0:05:57]} Nbd7 {[%emt 0:05:24]} 11. h3 {[%emt 0:11:20]} Qc7 {[%emt 0:05:44]} 12. c4 {[%emt 0:04:05]} Nb6 {[%emt 0:09:21]} 13. Bb3 {[%emt 0:01:40]} e5 {[%emt 0:00:44]} 14. dxe6 {[%emt 0:05:40]} Bxe6 {[%emt 0:00:07] [#]} 15. Bf4 {[%emt 0:07:44]} ({White should play} 15. Qd3 $1 $16) 15... Rad8 {[%emt 0:00:56]} 16. Qc2 {[%emt 0:01:30]} Nfd7 {[%emt 0:07:25]} 17. Nc3 {[%emt 0:02:50]} Ne5 {[%emt 0:05:18]} 18. Nxe5 {[%emt 0:06:23]} dxe5 {[%emt 0:00:18]} 19. Bg5 {[%emt 0:00:28]} f6 {[%emt 0:12:20]} 20. Nd5 $11 {[%emt 0:03:22]} Nxd5 {[%emt 0:03:13]} 21. cxd5 {[%emt 0:00:19]} Bf7 {[%emt 0:00:02]} 22. Be3 {[%emt 0:02:04]} b6 {[%emt 0:00:03]} 23. Ba4 {[%emt 0:01:35]} f5 {[%emt 0:02:34]} 24. f3 {[%emt 0:01:19]} Qe7 {[%emt 0:01:51]} 25. a3 {[%emt 0:02:43]} f4 {[%emt 0:03:37]} 26. Bf2 {[%emt 0:00:20]} Kh8 {[%emt 0:02:36]} 27. b4 {[%emt 0:02:29]} cxb4 {[%emt 0:03:15]} 28. axb4 {[%emt 0:02:30]} g5 {[%emt 0:02:55]} 29. Rec1 {[%emt 0:02:45]} Bg6 {[%emt 0:00:46]} 30. Qc7 {[%emt 0:04:35]} Qxb4 {[%emt 0:02:00]} 31. Bc6 {[%emt 0:01:32]} Bf6 {[%emt 0:05:23]} 32. Qxa7 {[%emt 0:02:08]} h5 {[%emt 0:00:29]} 33. Qxb6 {[%emt 0:04:36]} Qd2 {[%emt 0:00:45]} 34. Rd1 {[%emt 0:01:14]} Qe2 {[%emt 0:00:19]} 35. Qb5 {[%emt 0:02:30]} Qc2 {[%emt 0:01:21]} 36. Rdc1 {[%emt 0:00:25]} Qd2 {[%emt 0:00:13]} 37. Qa5 {[%emt 0:00:20]} Qxa5 {[%emt 0:01:25]} 38. Rxa5 {[%emt 0:00:03]} g4 {[%emt 0:00:14]} 39. hxg4 {[%emt 0:02:11]} hxg4 {[%emt 0:00:05]} 40. Kf1 {[%emt 0:00:06]} Rb8 {[%emt 0:01:02]} 41. Rb5 {[%emt 0:18:37]} gxf3 {[%emt 0:18:33]} 42. gxf3 {[%emt 0:00:06]} Bh5 {[%emt 0:00:16]} 43. Ke2 {[%emt 0:02:32]} Rxb5 {[%emt 0:03:13]} 44. Bxb5 {[%emt 0:00:02]} Kg7 {[%emt 0:00:26]} 45. Rc7+ {[%emt 0:03:57]} Kg6 {[%emt 0:01:25]} 46. Ba7 {[%emt 0:02:33]} Rg8 {[%emt 0:02:04]} 47. d6 {[%emt 0:03:41]} Kh6 {[%emt 0:01:06]} 48. d7 {[%emt 0:00:46]} Rg2+ {[%emt 0:00:46]} 49. Kf1 {[%emt 0:01:53]} Rd2 {[%emt 0:01:19]} 50. Be2 {[%emt 0:00:39]} Bd8 {[%emt 0:00:48]} 51. Rc6+ {[%emt 0:00:32]} Kg5 {[%emt 0:01:40]} 52. Bb8 {[%emt 0:00:30]} Rxd7 {[%emt 0:00:25]} 53. Bxe5 {[%emt 0:00:03]} Rb7 {[%emt 0:02:02]} 54. Kg2 {[%emt 0:00:49]} Rb1 {[%emt 0:01:22]} 55. Bg7 {[%emt 0:00:39]} Bg6 {[%emt 0:00:44]} 56. Rc5+ {[%emt 0:00:13]} Kh4 {[%emt 0:00:16]} 57. Bd4 {[%emt 0:00:42]} Bg5 {[%emt 0:00:34]} 58. Rc8 {[%emt 0:00:28]} Be7 {[%emt 0:01:03]} 59. Rg8 {[%emt 0:00:30]} Kg5 {[%emt 0:00:28]} 60. Be5 {[%emt 0:00:36]} Bc5 {[%emt 0:01:10]} 61. Rc8 {[%emt 0:00:24]} Be3 {[%emt 0:00:41]} 1/2-1/2

[Event "WWRR B-Group 2024"]
[Site "Wachtebeke"]
[Date "2024.02.14"]
[Round "7.3"]
[White "Raptis, Filippos"]
[Black "Verduyn, Frederic"]
[Result "0-1"]
[ECO "B06"]
[WhiteElo "2174"]
[BlackElo "2087"]
[Annotator "TA"]
[PlyCount "87"]
[EventDate "2024.02.12"]
[EventType "tourn"]
[EventCountry "BEL"]
[SourceTitle "playchess.com"]
[Source "ChessBase"]
[SourceQuality "1"]
[TimeControl "40/5400+30:900+30"]

{[%evp 9,87,42,61,37,40,20,27,17,17,7,8,5,16,28,12,0,0,-35,-48,-64,-77,-62,-66,-82,0,0,-4,-42,-43,-79,-104,-90,-90,-83,-83,-115,-104,-109,-112,-112,-101,-112,-66,-71,-64,-225,-222,-421,-420,-808,-795,-805,-806,-790,-782,-788,-781,-793,-793,-778,-763,-936,-932,-944,-918,-2239,-2239,-1206,-1183,-29956,-12838,-29980,-29980,-29972,-29973,-29987,-29977,-29976,-29974,-2997]} 1. e4 {[%emt 0:00:12]} g6 {[%emt 0:04:55]} 2. d4 {[%emt 0:01:13]} Bg7 {[%emt 0:01:01]} 3. Be3 {[%emt 0:01:33]} d5 {[%emt 0:02:49]} 4. exd5 {[%emt 0:03:50]} Nf6 {[%emt 0:02:35]} 5. c4 {[%emt 0:03:00]} O-O {[%emt 0:02:12][%cal Ob7b5]} 6. Be2 {[%emt 0:06:53]} b5 {[%emt 0:04:45]} 7. cxb5 {[%emt 0:07:30]} (7. b3 $5) 7... Nxd5 {[%emt 0:05:15]} 8. Nc3 {[%emt 0:00:45] White has an edge.} Nxe3 {[%emt 0:02:21]} 9. fxe3 {[%emt 0:00:02] Threatening Bf3.} Nd7 {[%emt 0:00:57][%cal Bb8d7,Bd7e5,Be5g4,Bg4e3][%mdl 32]} 10. Nf3 {[%emt 0:05:06]} Bb7 {[%emt 0:05:30]} 11. O-O {[%emt 0:04:26]} e5 {[%emt 0:03:47]} 12. dxe5 {[%emt 0:07:25][%cal Oe5e6]} Qe7 {[%emt 0:01:58]} 13. Rc1 {[%emt 0:28:14]} Nxe5 {[%emt 0:04:31]} 14. Nd5 {[%emt 0:05:54]} Bxd5 {[%emt 0:05:52]} 15. Qxd5 {[%emt 0:00:21]} Ng4 $1 {[%emt 0:01:55][%csl LRb2,LRe3]} 16. Qc5 {[%emt 0:01:40]} Qxc5 {[%emt 0:06:17]} (16... Rae8 $1 $17 17. Qxe7 (17. Qxc7 $2 {too greedy.} Qxe3+ 18. Kh1 Qxe2 $19) (17. Qxa7 $2 Bh6 $19) 17... Rxe7) 17. Rxc5 $11 {[%emt 0:00:02]} Bh6 {[%emt 0:01:31]} 18. Ng5 {[%emt 0:05:54]} Nxe3 {[%emt 0:03:25]} 19. Rxf7 {[%emt 0:06:29]} Rxf7 {[%emt 0:04:05]} 20. Nxf7 {[%emt 0:00:07]} Kxf7 {[%emt 0:00:32]} 21. Rxc7+ {[%emt 0:00:07]} Kg8 {[%emt 0:03:27]} 22. Bf3 {[%emt 0:02:55] [#]} Rb8 {[%emt 0:06:38]} 23. a4 {[%emt 0:01:07] [#]} Nf5 $1 {[%emt 0:01:00]} 24. Kf1 {[%emt 0:06:32]} Be3 {[%emt 0:01:04]} 25. b4 {[%emt 0:01:05]} Rd8 {[%emt 0:04:14]} ({Better is} 25... Bb6 $17 26. Bd5+ Kh8 (26... Kf8 27. Rf7+ Ke8 28. Rxh7 $11)) 26. a5 $15 {[%emt 0:00:23][%cal Ob5b6]} Nd4 {[%emt 0:05:36]} 27. b6 {[%emt 0:00:38] Loses the game.} ({White should play} 27. Re7 $15 Nxf3 28. gxf3) 27... axb6 $19 {[%emt 0:05:21]} 28. axb6 $2 {[%emt 0:00:18]} (28. a6 {was called for.} Nxf3 29. gxf3) 28... Nxf3 {[%emt 0:00:47]} 29. b7 {[%emt 0:00:37]} (29. gxf3 $142 Bxb6 30. Rb7) 29... Nxh2+ {[%emt 0:00:18]} 30. Ke2 {[%emt 0:00:07]} Ba7 {[%emt 0:00:38]} 31. Rc8 {[%emt 0:00:47]} Rf8 {[%emt 0:00:14]} 32. Kd3 {[%emt 0:00:11]} Ng4 {[%emt 0:02:24]} 33. Kc4 {[%emt 0:01:01]} Ne3+ {[%emt 0:00:40]} 34. Kb5 {[%emt 0:00:15]} Bb8 {[%emt 0:01:20]} 35. Kc6 {[%emt 0:00:23]} Nf5 {[%emt 0:01:17] And now ...Nd6 would win.} 36. Kd7 {[%emt 0:00:17]} Nd6 {[%emt 0:00:43][%cal Og8g7]} 37. Rc2 {[%emt 0:00:27]} Rf7+ {[%emt 0:01:05]} 38. Ke6 {[%emt 0:00:31]} Rxb7 {[%emt 0:00:18]} 39. g4 {[%emt 0:00:23]} Rxb4 {[%emt 0:00:26][%cal Od6e4] ( -> ...Ne4!)} 40. g5 {[%emt 0:00:06]} Rb5 {[%emt 0:00:31] Black mates.} 41. Ra2 {[%emt 0:15:54]} Rxg5 {[%emt 0:15:50]} 42. Kf6 {[%emt 0:00:23]} Rf5+ {[%emt 0:01:00]} 43. Ke6 {[%emt 0:00:07]} Rf8 {[%emt 0:00:18]} 44. Kd5 {[%emt 0:02:20] Weighted Error Value: White=0.53/Black=0.05 (flawless) .  Loses game:     	White=1     	---        Mistake:       	White=2     	Black=2      Inaccurate:     	White=4     	---        OK:         	White=5     	Black=10     Best:        	White=1     	Black=4      Strong:       	---       	Black=1} 0-1

[Event "WWRR B-Group 2024"]
[Site "Wachtebeke"]
[Date "2024.02.14"]
[Round "7.4"]
[White "Dreelinck, Jacob"]
[Black "Ruzhansky, Elias"]
[Result "1-0"]
[ECO "B57"]
[WhiteElo "2196"]
[BlackElo "2133"]
[Annotator "TA"]
[PlyCount "72"]
[EventDate "2024.02.12"]
[EventType "tourn"]
[EventCountry "BEL"]
[SourceTitle "playchess.com"]
[Source "ChessBase"]
[SourceQuality "1"]
[TimeControl "40/5400+30:900+30"]

{[%evp 17,72,19,24,12,30,14,8,13,8,0,46,39,44,-18,-17,-13,34,29,42,43,90,75,101,83,85,100,154,133,119,113,113,124,167,111,108,104,119,136,410,412,418,406,735,716,677,560,557,547,556,561,746,738,912,635,620,608,632]} 1. e4 {[%emt 0:00:01]} c5 {[%emt 0:00:11]} 2. Nf3 {[%emt 0:00:43]} Nc6 {[%emt 0:00:05]} 3. d4 {[%emt 0:00:02]} cxd4 {[%emt 0:00:05]} 4. Nxd4 {[%emt 0:00:04]} Nf6 {[%emt 0:00:08]} 5. Nc3 {[%emt 0:00:02]} d6 {[%emt 0:00:06]} 6. Bc4 {[%emt 0:00:04]} Qb6 {[%emt 0:00:09]} 7. Nb3 {[%emt 0:00:04]} e6 {[%emt 0:00:06]} 8. Bf4 {[%emt 0:00:02]} Ne5 {[%emt 0:00:28]} 9. Be2 {[%emt 0:00:06]} Bd7 {[%emt 0:00:04]} 10. Qd2 {[%emt 0:00:05]} a6 {[%emt 0:12:02]} 11. O-O-O {[%emt 0:00:44]} Qc7 {[%emt 0:01:05]} 12. Bg5 {[%emt 0:05:21] The position is equal.} b5 {[%emt 0:04:44] [#] And now ...b4 would win.} 13. f4 {[%emt 0:23:32]} b4 {[%emt 0:16:35]} (13... Neg4 $11 {is superior.}) 14. Nd5 $1 $14 {[%emt 0:00:11]} (14. fxe5 bxc3 15. Qe3 (15. Qxc3 Qxc3 16. bxc3 dxe5 $17) 15... dxe5 16. bxc3 a5 17. Bxf6 gxf6 $19) 14... exd5 {[%emt 0:02:07]} 15. Bxf6 {[%emt 0:03:38]} (15. fxe5 $14 dxe5 16. Bxf6 (16. exd5 Ne4 $11) 16... gxf6 17. Rhf1) 15... gxf6 $11 {[%emt 0:00:13]} 16. fxe5 {[%emt 0:00:16]} dxe5 {[%emt 0:21:20]} (16... fxe5 $11 17. Qxd5 (17. Qxb4 $2 a5 $17) 17... Rc8) 17. exd5 $14 {[%emt 0:00:43]} Rc8 {[%emt 0:13:20][%cal Of8h6] [#] ...Bh6! is the strong threat.} 18. Kb1 {[%emt 0:01:57]} (18. Bxa6 $2 {too greedy.} Bh6 19. Bxc8 Bxd2+ 20. Kb1 Bh6 21. Bxd7+ Kxd7 $19) 18... Qb6 {[%emt 0:00:28]} (18... a5 $14) 19. Rhf1 {[%emt 0:02:06]} a5 {[%emt 0:00:47]} 20. Qe1 {[%emt 0:03:23]} a4 {[%emt 0:01:51]} 21. Nd2 {[%emt 0:03:21] Qg3 would now be deadly.} b3 {[%emt 0:05:05]} 22. axb3 {[%emt 0:03:49]} axb3 {[%emt 0:06:31]} 23. Nxb3 {[%emt 0:01:43]} Rg8 {[%emt 0:00:53]} 24. g3 {[%emt 0:13:56]} Bb4 {[%emt 0:07:17]} 25. Qf2 {[%emt 0:01:09]} ({Better is} 25. Rxf6 $18 Qxf6 26. Qxb4) 25... Qxf2 $16 {[%emt 0:00:35]} 26. Rxf2 {[%emt 0:00:01]} f5 {[%emt 0:00:09]} 27. c3 {[%emt 0:36:57]} Bxc3 {[%emt 0:03:43][%mdl 8192] This move loses the game for Black.} (27... Bf8 $16) 28. bxc3 $18 {[%emt 0:00:00]} Rxc3 {[%emt 0:00:04]} 29. Kb2 {[%emt 0:00:00]} Re3 {[%emt 0:00:19]} (29... Rc8 $142 30. d6 f6) 30. Nc5 {[%emt 0:00:00] White is clearly winning.} f4 {[%emt 0:00:31]} 31. gxf4 {[%emt 0:00:00]} exf4 {[%emt 0:00:06]} 32. Rd4 {[%emt 0:00:00]} Rg5 {[%emt 0:02:09]} 33. Bf3 {[%emt 0:00:00]} Rg1 {[%emt 0:01:28]} 34. Rxf4 {[%emt 0:00:00]} f5 {[%emt 0:00:25]} 35. Nxd7 {[%emt 0:00:00]} Kxd7 {[%emt 0:00:05]} 36. Rxf5 {[%emt 0:00:00]} Rg8 {[%emt 0:00:09] Weighted Error Value: White=0.28 (precise) /Black=0.35.  Loses game:     	---       	Black=1      Mistake:       	White=2     	Black=5      Inaccurate:     	---       	Black=3      OK:         	White=10    	Black=8      Best:        	White=2     	---        Strong:       	White=1     	---} 1-0